[Event "Titled Tuesday Blitz November 22 Early 2022"]
[White "Cramling Bellon, Anna"]
[Black "Jiganchine, Roman"]
[WhiteFideId "32009232"]
[BlackFideId "2603667"]
[WhiteElo "1972"]
[BlackElo "2310"]
[Result "0-1"]
[Round "04"]
[TimeControl "180+1"]
[Date "2022.11.23"]
[WhiteClock "0:00:04"]
[BlackClock "0:01:00"]

1. d4 {[%clk 0:03:00]}  d5 {[%clk 0:02:59]} 2. c4 {[%clk 0:03:00]}  e6 {[%clk 0:02:59]} 3. Nc3 {[%clk 0:03:00]}  Nf6 {[%clk 0:02:59]} 4. cxd5 {[%clk 0:03:00]}  exd5 {[%clk 0:02:59]} 5. Bg5 {[%clk 0:03:00]}  c6 {[%clk 0:03:00]} 6. e3 {[%clk 0:03:00]}  Bf5 {[%clk 0:02:58]} 7. Qf3 {[%clk 0:02:57]}  Bg6 {[%clk 0:02:58]} 8. Bxf6 {[%clk 0:02:55]}  Qxf6 {[%clk 0:02:59]} 9. Qxf6 {[%clk 0:02:56]}  gxf6 {[%clk 0:03:00]} 10. h4 {[%clk 0:02:56]}  h5 {[%clk 0:03:00]} 11. Nh3 {[%clk 0:02:56]}  Bd6 {[%clk 0:02:57]} 12. g3 {[%clk 0:02:56]}  Nd7 {[%clk 0:02:56]} 13. Be2 {[%clk 0:02:54]}  a5 {[%clk 0:02:54]} 14. O-O-O {[%clk 0:02:50]}  a4 {[%clk 0:02:49]} 15. Nf4 {[%clk 0:02:30]}  a3 {[%clk 0:02:46]} 16. Nxg6 {[%clk 0:02:12]}  axb2+ {[%clk 0:02:40]} 17. Kxb2 {[%clk 0:02:13]}  fxg6 {[%clk 0:02:40]} 18. Bd3 {[%clk 0:02:02]}  Kf7 {[%clk 0:02:39]} 19. e4 {[%clk 0:01:57]}  dxe4 {[%clk 0:02:13]} 20. Nxe4 {[%clk 0:01:58]}  Ba3+ {[%clk 0:02:06]} 21. Kb3 {[%clk 0:01:53]}  Nb6 {[%clk 0:02:06]} 22. Nc5 {[%clk 0:01:36]}  Rhd8 {[%clk 0:01:49]} 23. Rhe1 {[%clk 0:01:24]}  Bxc5 {[%clk 0:01:23]} 24. dxc5 {[%clk 0:01:22]}  Nd5 {[%clk 0:01:23]} 25. Bc4 {[%clk 0:01:18]}  Ra5 {[%clk 0:01:16]} 26. Bxd5+ {[%clk 0:00:31]}  Rxd5 {[%clk 0:01:14]} 27. Rxd5 {[%clk 0:00:30]}  cxd5 {[%clk 0:01:15]} 28. Rc1 {[%clk 0:00:30]}  Ra6 {[%clk 0:01:06]} 29. a4 {[%clk 0:00:27]}  Ke6 {[%clk 0:01:06]} 30. Kb4 {[%clk 0:00:27]}  Kd7 {[%clk 0:01:03]} 31. Kb5 {[%clk 0:00:25]}  Ra8 {[%clk 0:01:03]} 32. a5 {[%clk 0:00:13]}  Kc7 {[%clk 0:01:02]} 33. Rd1 {[%clk 0:00:11]}  Rd8 {[%clk 0:01:01]} 34. a6 {[%clk 0:00:09]}  bxa6+ {[%clk 0:01:01]} 35. Kxa6 {[%clk 0:00:06]}  Kc6 {[%clk 0:01:01]} 36. Re1 {[%clk 0:00:04]}  Ra8# {[%clk 0:01:00]} 0-1


[Site "https://www.chess.com"]

[Event "Titled Tuesday Blitz November 22 Early 2022"]
[White "D`Arruda, Ricardo D."]
[Black "Ajay, Karthikeyan"]
[WhiteFideId "100692"]
[BlackFideId "35011685"]
[WhiteElo "2511"]
[BlackElo "2337"]
[Result "1-0"]
[Round "04"]
[TimeControl "180+1"]
[Date "2022.11.23"]
[WhiteClock "0:00:56"]
[BlackClock "0:00:03"]

1. d4 {[%clk 0:03:00]}  Nf6 {[%clk 0:02:58]} 2. Nf3 {[%clk 0:03:01]}  d5 {[%clk 0:02:58]} 3. Nc3 {[%clk 0:03:00]}  Bf5 {[%clk 0:02:56]} 4. Bg5 {[%clk 0:03:00]}  e6 {[%clk 0:02:55]} 5. e3 {[%clk 0:03:00]}  h6 {[%clk 0:02:55]} 6. Bf4 {[%clk 0:02:58]}  Bd6 {[%clk 0:02:51]} 7. Bxd6 {[%clk 0:02:57]}  Qxd6 {[%clk 0:02:48]} 8. Bd3 {[%clk 0:02:57]}  a6 {[%clk 0:02:46]} 9. Bxf5 {[%clk 0:02:56]}  exf5 {[%clk 0:02:46]} 10. O-O {[%clk 0:02:56]}  Nbd7 {[%clk 0:02:44]} 11. Ne2 {[%clk 0:02:54]}  g6 {[%clk 0:02:41]} 12. Nf4 {[%clk 0:02:53]}  c6 {[%clk 0:02:39]} 13. Qd3 {[%clk 0:02:50]}  Ne4 {[%clk 0:02:30]} 14. c4 {[%clk 0:02:44]}  dxc4 {[%clk 0:02:28]} 15. Qxc4 {[%clk 0:02:42]}  g5 {[%clk 0:02:12]} 16. Nh5 {[%clk 0:02:26]}  Rg8 {[%clk 0:02:05]} 17. Qc2 {[%clk 0:02:15]}  Ndf6 {[%clk 0:01:59]} 18. Nxf6+ {[%clk 0:02:14]}  Qxf6 {[%clk 0:01:58]} 19. Nd2 {[%clk 0:02:13]}  Nxd2 {[%clk 0:01:56]} 20. Qxd2 {[%clk 0:02:14]}  O-O-O {[%clk 0:01:57]} 21. b4 {[%clk 0:01:58]}  f4 {[%clk 0:01:55]} 22. a4 {[%clk 0:01:58]}  g4 {[%clk 0:01:47]} 23. b5 {[%clk 0:01:43]}  c5 {[%clk 0:00:35]} 24. bxa6 {[%clk 0:01:42]}  Qxa6 {[%clk 0:00:34]} 25. Rfc1 {[%clk 0:01:38]}  Kb8 {[%clk 0:00:33]} 26. Rxc5 {[%clk 0:01:36]}  f3 {[%clk 0:00:33]} 27. Rb1 {[%clk 0:01:30]}  fxg2 {[%clk 0:00:31]} 28. Rcb5 {[%clk 0:01:15]}  Rd7 {[%clk 0:00:31]} 29. Qb4 {[%clk 0:01:14]}  Rc8 {[%clk 0:00:25]} 30. d5 {[%clk 0:01:11]}  h5 {[%clk 0:00:23]} 31. Kxg2 {[%clk 0:01:11]}  Ka8 {[%clk 0:00:12]} 32. Ra5 {[%clk 0:01:11]}  Qxa5 {[%clk 0:00:11]} 33. Qxa5+ {[%clk 0:01:11]}  Kb8 {[%clk 0:00:12]} 34. e4 {[%clk 0:01:09]}  f5 {[%clk 0:00:12]} 35. e5 {[%clk 0:01:05]}  f4 {[%clk 0:00:12]} 36. e6 {[%clk 0:01:04]}  f3+ {[%clk 0:00:13]} 37. Kg3 {[%clk 0:01:04]}  h4+ {[%clk 0:00:12]} 38. Kxg4 {[%clk 0:01:03]}  Rg7+ {[%clk 0:00:13]} 39. Kh3 {[%clk 0:01:03]}  Rg2 {[%clk 0:00:06]} 40. Qb6 {[%clk 0:00:59]}  Rg7 {[%clk 0:00:04]} 41. d6 {[%clk 0:00:58]}  Rc6 {[%clk 0:00:05]} 42. Qxc6 {[%clk 0:00:57]}  Rg3+ {[%clk 0:00:03]} 43. hxg3 {[%clk 0:00:56]}  hxg3 {[%clk 0:00:03]} 44. Qxb7# {[%clk 0:00:56]} 1-0


[Site "https://www.chess.com"]

[Event "Titled Tuesday Blitz November 22 Early 2022"]
[White "Deac, Bogdan-Daniel"]
[Black "Bacrot, Etienne"]
[WhiteFideId "1226380"]
[BlackFideId "605506"]
[WhiteElo "2648"]
[BlackElo "2666"]
[Result "1-0"]
[Round "04"]
[TimeControl "180+1"]
[Date "2022.11.22"]
[WhiteClock "0:00:11"]
[BlackClock "0:00:10"]

1. e4 {[%clk 0:03:00]}  c5 {[%clk 0:02:59]} 2. Nf3 {[%clk 0:03:00]}  d6 {[%clk 0:03:00]} 3. Bb5+ {[%clk 0:03:00]}  Bd7 {[%clk 0:02:59]} 4. c4 {[%clk 0:03:00]}  Nc6 {[%clk 0:02:58]} 5. d4 {[%clk 0:02:59]}  cxd4 {[%clk 0:02:58]} 6. Nxd4 {[%clk 0:03:00]}  Nf6 {[%clk 0:02:55]} 7. Nc3 {[%clk 0:03:00]}  g6 {[%clk 0:02:54]} 8. Be3 {[%clk 0:02:57]}  Ng4 {[%clk 0:02:51]} 9. Nxc6 {[%clk 0:02:47]}  bxc6 {[%clk 0:02:50]} 10. Bxc6 {[%clk 0:02:47]}  Nxe3 {[%clk 0:02:49]} 11. Bxd7+ {[%clk 0:02:47]}  Qxd7 {[%clk 0:02:50]} 12. fxe3 {[%clk 0:02:47]}  Bg7 {[%clk 0:02:47]} 13. Rc1 {[%clk 0:02:47]}  O-O {[%clk 0:02:29]} 14. b3 {[%clk 0:02:44]}  Rac8 {[%clk 0:01:55]} 15. O-O {[%clk 0:02:40]}  Qb7 {[%clk 0:01:55]} 16. Qd3 {[%clk 0:02:34]}  Rc5 {[%clk 0:01:54]} 17. Nd5 {[%clk 0:02:32]}  a5 {[%clk 0:01:46]} 18. Rf3 {[%clk 0:02:27]}  Be5 {[%clk 0:01:30]} 19. Rcf1 {[%clk 0:02:23]}  Kg7 {[%clk 0:01:27]} 20. Nf4 {[%clk 0:02:16]}  Rcc8 {[%clk 0:01:21]} 21. Qd5 {[%clk 0:01:59]}  Qa7 {[%clk 0:01:03]} 22. Nd3 {[%clk 0:01:45]}  e6 {[%clk 0:00:57]} 23. Qb5 {[%clk 0:01:45]}  Bc3 {[%clk 0:00:46]} 24. c5 {[%clk 0:01:02]}  dxc5 {[%clk 0:00:11]} 25. Qc4 {[%clk 0:01:00]}  Bb4 {[%clk 0:00:11]} 26. Ne5 {[%clk 0:00:25]}  Rc7 {[%clk 0:00:12]} 27. Ng4 {[%clk 0:00:19]}  a4 {[%clk 0:00:12]} 28. a3 {[%clk 0:00:14]}  Bxa3 {[%clk 0:00:10]} 29. Qc3+ {[%clk 0:00:14]}  f6 {[%clk 0:00:11]} 30. Rxf6 {[%clk 0:00:12]}  Bb4 {[%clk 0:00:11]} 31. Rf7+ {[%clk 0:00:12]}  Kg8 {[%clk 0:00:10]} 32. Nh6# {[%clk 0:00:11]} 1-0


[Site "https://www.chess.com"]

[Event "Titled Tuesday Blitz November 22 Early 2022"]
[White "Decuigniere, Tom"]
[Black "Rakhmanov, Aleksandr"]
[WhiteFideId "26093820"]
[BlackFideId "4173708"]
[WhiteElo "2252"]
[BlackElo "2530"]
[Result "1-0"]
[Round "04"]
[TimeControl "180+1"]
[Date "2022.11.23"]
[WhiteClock "0:00:06"]
[BlackClock "0:00:07"]

1. c4 {[%clk 0:03:00]}  e5 {[%clk 0:02:56]} 2. g3 {[%clk 0:03:00]}  c6 {[%clk 0:02:55]} 3. Nc3 {[%clk 0:02:56]}  d5 {[%clk 0:02:53]} 4. cxd5 {[%clk 0:02:45]}  cxd5 {[%clk 0:02:54]} 5. d4 {[%clk 0:02:44]}  Nc6 {[%clk 0:02:47]} 6. dxe5 {[%clk 0:02:32]}  d4 {[%clk 0:02:46]} 7. Ne4 {[%clk 0:02:32]}  Qa5+ {[%clk 0:02:25]} 8. Nd2 {[%clk 0:02:24]}  Bf5 {[%clk 0:02:13]} 9. Nf3 {[%clk 0:02:08]}  Qc5 {[%clk 0:00:48]} 10. Nb3 {[%clk 0:01:54]}  Qd5 {[%clk 0:00:46]} 11. Bg2 {[%clk 0:01:49]}  Bb4+ {[%clk 0:00:44]} 12. Bd2 {[%clk 0:01:47]}  Bxd2+ {[%clk 0:00:44]} 13. Qxd2 {[%clk 0:01:44]}  Be4 {[%clk 0:00:44]} 14. O-O {[%clk 0:01:42]}  Rd8 {[%clk 0:00:41]} 15. Rac1 {[%clk 0:01:36]}  Nge7 {[%clk 0:00:36]} 16. Rc5 {[%clk 0:01:33]}  Qd7 {[%clk 0:00:34]} 17. Qf4 {[%clk 0:00:50]}  Bf5 {[%clk 0:00:21]} 18. Rd1 {[%clk 0:00:46]}  Ng6 {[%clk 0:00:19]} 19. Qc1 {[%clk 0:00:40]}  d3 {[%clk 0:00:18]} 20. exd3 {[%clk 0:00:33]}  O-O {[%clk 0:00:18]} 21. d4 {[%clk 0:00:34]}  Nb4 {[%clk 0:00:18]} 22. Qd2 {[%clk 0:00:26]}  b6 {[%clk 0:00:17]} 23. Rc4 {[%clk 0:00:23]}  a5 {[%clk 0:00:17]} 24. a3 {[%clk 0:00:23]}  Be6 {[%clk 0:00:17]} 25. Rc3 {[%clk 0:00:21]}  Nd5 {[%clk 0:00:15]} 26. Rd3 {[%clk 0:00:21]}  Bf5 {[%clk 0:00:15]} 27. Nc1 {[%clk 0:00:18]}  Bxd3 {[%clk 0:00:14]} 28. Nxd3 {[%clk 0:00:19]}  Rfe8 {[%clk 0:00:14]} 29. h4 {[%clk 0:00:19]}  Nf8 {[%clk 0:00:13]} 30. Ng5 {[%clk 0:00:17]}  Ne6 {[%clk 0:00:13]} 31. Nxe6 {[%clk 0:00:15]}  Qxe6 {[%clk 0:00:14]} 32. Bxd5 {[%clk 0:00:13]}  Qxd5 {[%clk 0:00:10]} 33. Nf4 {[%clk 0:00:13]}  Qc4 {[%clk 0:00:10]} 34. Qe3 {[%clk 0:00:10]}  h6 {[%clk 0:00:10]} 35. d5 {[%clk 0:00:08]}  Qc5 {[%clk 0:00:09]} 36. Qxc5 {[%clk 0:00:04]}  bxc5 {[%clk 0:00:10]} 37. e6 {[%clk 0:00:05]}  fxe6 {[%clk 0:00:10]} 38. Rc1 {[%clk 0:00:02]}  exd5 {[%clk 0:00:10]} 39. Rxc5 {[%clk 0:00:02]}  d4 {[%clk 0:00:08]} 40. Rc2 {[%clk 0:00:02]}  a4 {[%clk 0:00:06]} 41. Rd2 {[%clk 0:00:02]}  Re5 {[%clk 0:00:06]} 42. Kf1 {[%clk 0:00:03]}  Rb5 {[%clk 0:00:05]} 43. Ke2 {[%clk 0:00:03]}  g5 {[%clk 0:00:03]} 44. hxg5 {[%clk 0:00:02]}  hxg5 {[%clk 0:00:04]} 45. Nd3 {[%clk 0:00:03]}  Re8+ {[%clk 0:00:05]} 46. Kf3 {[%clk 0:00:03]}  Rf5+ {[%clk 0:00:04]} 47. Kg2 {[%clk 0:00:03]}  Rd5 {[%clk 0:00:04]} 48. Nb4 {[%clk 0:00:03]}  Rd6 {[%clk 0:00:04]} 49. Nc2 {[%clk 0:00:04]}  d3 {[%clk 0:00:03]} 50. Nb4 {[%clk 0:00:04]}  Red8 {[%clk 0:00:04]} 51. Kf3 {[%clk 0:00:05]}  Kf7 {[%clk 0:00:04]} 52. Ke3 {[%clk 0:00:05]}  Re8+ {[%clk 0:00:04]} 53. Kf3 {[%clk 0:00:05]}  Re2 {[%clk 0:00:05]} 54. Rxd3 {[%clk 0:00:04]}  Rxd3+ {[%clk 0:00:05]} 55. Nxd3 {[%clk 0:00:05]}  Rc2 {[%clk 0:00:05]} 56. Ke3 {[%clk 0:00:06]}  Ke6 {[%clk 0:00:05]} 57. f3 {[%clk 0:00:06]}  Kd5 {[%clk 0:00:05]} 58. Nb4+ {[%clk 0:00:07]}  Kc4 {[%clk 0:00:06]} 59. Nxc2 {[%clk 0:00:08]}  Kb3 {[%clk 0:00:06]} 60. Nd4+ {[%clk 0:00:06]}  Kxb2 {[%clk 0:00:06]} 61. Nb5 {[%clk 0:00:06]}  Kb3 {[%clk 0:00:07]} 62. Kd4 {[%clk 0:00:06]} 1-0


[Site "https://www.chess.com"]

[Event "Titled Tuesday Blitz November 22 Early 2022"]
[White "Derjabin, Ilja"]
[Black "Vaibhav Jayant Raut"]
[WhiteFideId "14104768"]
[BlackFideId "5089034"]
[WhiteElo "2312"]
[BlackElo "2147"]
[Result "0-1"]
[Round "04"]
[TimeControl "180+1"]
[Date "2022.11.23"]
[WhiteClock "0:00:18"]
[BlackClock "0:00:59"]

1. d4 {[%clk 0:02:56]}  Nf6 {[%clk 0:02:59]} 2. c4 {[%clk 0:02:56]}  e6 {[%clk 0:03:00]} 3. Nc3 {[%clk 0:02:56]}  Bb4 {[%clk 0:03:00]} 4. f3 {[%clk 0:02:56]}  d5 {[%clk 0:03:00]} 5. a3 {[%clk 0:02:56]}  Bxc3+ {[%clk 0:03:00]} 6. bxc3 {[%clk 0:02:55]}  O-O {[%clk 0:03:01]} 7. e3 {[%clk 0:02:56]}  c5 {[%clk 0:03:00]} 8. Bd3 {[%clk 0:02:56]}  dxc4 {[%clk 0:02:57]} 9. Bxc4 {[%clk 0:02:54]}  Nc6 {[%clk 0:02:58]} 10. Ne2 {[%clk 0:02:54]}  Qc7 {[%clk 0:02:57]} 11. O-O {[%clk 0:02:44]}  e5 {[%clk 0:02:55]} 12. d5 {[%clk 0:02:40]}  Na5 {[%clk 0:02:53]} 13. Ba2 {[%clk 0:02:39]}  Ne8 {[%clk 0:02:51]} 14. e4 {[%clk 0:02:34]}  Nd6 {[%clk 0:02:49]} 15. Bb1 {[%clk 0:02:11]}  b6 {[%clk 0:02:43]} 16. f4 {[%clk 0:02:09]}  Nac4 {[%clk 0:02:26]} 17. fxe5 {[%clk 0:02:02]}  Nxe5 {[%clk 0:02:27]} 18. Ng3 {[%clk 0:01:52]}  Ba6 {[%clk 0:02:22]} 19. Rf2 {[%clk 0:01:52]}  Rae8 {[%clk 0:02:21]} 20. Bf4 {[%clk 0:01:41]}  Ng6 {[%clk 0:02:13]} 21. Bxd6 {[%clk 0:01:14]}  Qxd6 {[%clk 0:02:12]} 22. Nf5 {[%clk 0:01:15]}  Qe5 {[%clk 0:02:07]} 23. Qf3 {[%clk 0:01:15]}  Bc8 {[%clk 0:01:53]} 24. Bc2 {[%clk 0:01:02]}  f6 {[%clk 0:01:44]} 25. Rd1 {[%clk 0:00:56]}  Qb8 {[%clk 0:01:16]} 26. d6 {[%clk 0:00:48]}  Ne5 {[%clk 0:01:11]} 27. Qg3 {[%clk 0:00:34]}  Bxf5 {[%clk 0:01:09]} 28. exf5 {[%clk 0:00:34]}  Rd8 {[%clk 0:01:05]} 29. Be4 {[%clk 0:00:20]}  Rxd6 {[%clk 0:00:59]} 30. Bd5+ {[%clk 0:00:18]}  Kh8 {[%clk 0:00:59]} 31. Rfd2 {[%clk 0:00:18]}  Rfd8 {[%clk 0:00:58]} 32. c4 {[%clk 0:00:18]}  b5 {[%clk 0:00:59]} 0-1


[Site "https://www.chess.com"]

[Event "Titled Tuesday Blitz November 22 Early 2022"]
[White "Djokic, Mihailo"]
[Black "Ljukin, Sergei"]
[WhiteFideId "976440"]
[BlackFideId "14102200"]
[WhiteElo "2315"]
[BlackElo "2312"]
[Result "1-0"]
[Round "04"]
[TimeControl "180+1"]
[Date "2022.11.23"]
[WhiteClock "0:02:20"]
[BlackClock "0:02:34"]

1. e4 {[%clk 0:03:00]}  e6 {[%clk 0:02:54]} 2. d4 {[%clk 0:03:00]}  d5 {[%clk 0:02:54]} 3. Nc3 {[%clk 0:03:01]}  Bb4 {[%clk 0:02:53]} 4. e5 {[%clk 0:02:56]}  Ne7 {[%clk 0:02:53]} 5. a3 {[%clk 0:02:54]}  Bxc3+ {[%clk 0:02:52]} 6. bxc3 {[%clk 0:02:55]}  c5 {[%clk 0:02:52]} 7. h4 {[%clk 0:02:55]}  Nbc6 {[%clk 0:02:50]} 8. h5 {[%clk 0:02:55]}  h6 {[%clk 0:02:50]} 9. Qg4 {[%clk 0:02:52]}  Nf5 {[%clk 0:02:49]} 10. Nf3 {[%clk 0:02:51]}  Qc7 {[%clk 0:02:45]} 11. Bd3 {[%clk 0:02:51]}  cxd4 {[%clk 0:02:42]} 12. Bxf5 {[%clk 0:02:50]}  exf5 {[%clk 0:02:42]} 13. Qxg7 {[%clk 0:02:50]}  Rf8 {[%clk 0:02:40]} 14. cxd4 {[%clk 0:02:50]}  Nxd4 {[%clk 0:02:38]} 15. Nxd4 {[%clk 0:02:25]}  Qc3+ {[%clk 0:02:35]} 16. Ke2 {[%clk 0:02:25]}  Qxd4 {[%clk 0:02:34]} 17. Bxh6 {[%clk 0:02:20]} 1-0


[Site "https://www.chess.com"]

[Event "Titled Tuesday Blitz November 22 Early 2022"]
[White "Donchenko, Alexander"]
[Black "Williams, Simon K"]
[WhiteFideId "24603295"]
[BlackFideId "404454"]
[WhiteElo "2572"]
[BlackElo "2468"]
[Result "1-0"]
[Round "04"]
[TimeControl "180+1"]
[Date "2022.11.23"]
[WhiteClock "0:01:40"]
[BlackClock "0:00:47"]

1. Nf3 {[%clk 0:03:00]}  f5 {[%clk 0:02:59]} 2. c4 {[%clk 0:02:58]}  Nf6 {[%clk 0:02:56]} 3. d4 {[%clk 0:02:59]}  e6 {[%clk 0:02:55]} 4. e3 {[%clk 0:02:58]}  b6 {[%clk 0:02:54]} 5. Be2 {[%clk 0:02:57]}  Bb7 {[%clk 0:02:54]} 6. O-O {[%clk 0:02:56]}  Bd6 {[%clk 0:02:53]} 7. Nc3 {[%clk 0:02:56]}  O-O {[%clk 0:02:52]} 8. d5 {[%clk 0:02:52]}  Ne4 {[%clk 0:02:38]} 9. Nxe4 {[%clk 0:02:47]}  fxe4 {[%clk 0:02:38]} 10. Nd4 {[%clk 0:02:47]}  exd5 {[%clk 0:02:31]} 11. cxd5 {[%clk 0:02:47]}  Qh4 {[%clk 0:02:01]} 12. g3 {[%clk 0:02:46]}  Qg5 {[%clk 0:02:01]} 13. Nb5 {[%clk 0:02:42]}  Bxd5 {[%clk 0:01:49]} 14. Nxd6 {[%clk 0:02:32]}  cxd6 {[%clk 0:01:49]} 15. b3 {[%clk 0:02:12]}  Nc6 {[%clk 0:01:43]} 16. Bb2 {[%clk 0:02:11]}  Rf3 {[%clk 0:01:17]} 17. Qd2 {[%clk 0:01:49]}  Raf8 {[%clk 0:01:02]} 18. Bxf3 {[%clk 0:01:41]}  exf3 {[%clk 0:01:01]} 19. Rfd1 {[%clk 0:01:41]}  Qf5 {[%clk 0:00:47]} 20. Qxd5+ {[%clk 0:01:40]} 1-0


[Site "https://www.chess.com"]

[Event "Titled Tuesday Blitz November 22 Early 2022"]
[White "Drygalov, Sergey"]
[Black "Tsaruk, Maksim"]
[WhiteFideId "24171743"]
[BlackFideId "13511173"]
[WhiteElo "2528"]
[BlackElo "2300"]
[Result "1-0"]
[Round "04"]
[TimeControl "180+1"]
[Date "2022.11.22"]
[WhiteClock "0:00:24"]
[BlackClock "0:00:40"]

1. d4 {[%clk 0:02:54]}  Nf6 {[%clk 0:02:32]} 2. c4 {[%clk 0:02:50]}  e6 {[%clk 0:02:32]} 3. Nc3 {[%clk 0:02:49]}  d5 {[%clk 0:02:32]} 4. cxd5 {[%clk 0:02:46]}  Nxd5 {[%clk 0:02:33]} 5. Nf3 {[%clk 0:02:45]}  c5 {[%clk 0:02:33]} 6. e3 {[%clk 0:02:41]}  Nc6 {[%clk 0:02:33]} 7. Bd3 {[%clk 0:02:41]}  Be7 {[%clk 0:02:33]} 8. O-O {[%clk 0:02:40]}  O-O {[%clk 0:02:33]} 9. Qe2 {[%clk 0:02:37]}  b6 {[%clk 0:02:29]} 10. Rd1 {[%clk 0:02:35]}  Ncb4 {[%clk 0:02:28]} 11. Bc4 {[%clk 0:02:29]}  Bb7 {[%clk 0:02:25]} 12. e4 {[%clk 0:02:28]}  Nf6 {[%clk 0:02:15]} 13. dxc5 {[%clk 0:02:18]}  Qb8 {[%clk 0:02:14]} 14. a3 {[%clk 0:02:14]}  Nc6 {[%clk 0:02:14]} 15. cxb6 {[%clk 0:02:08]}  axb6 {[%clk 0:02:15]} 16. g3 {[%clk 0:02:08]}  Rc8 {[%clk 0:02:12]} 17. Bf4 {[%clk 0:02:06]}  e5 {[%clk 0:02:09]} 18. Be3 {[%clk 0:01:57]}  Na5 {[%clk 0:02:07]} 19. Ba2 {[%clk 0:01:51]}  Nxe4 {[%clk 0:01:59]} 20. Rd7 {[%clk 0:01:21]}  Nxc3 {[%clk 0:01:43]} 21. bxc3 {[%clk 0:01:17]}  Rc7 {[%clk 0:01:44]} 22. Nxe5 {[%clk 0:01:01]}  Rxd7 {[%clk 0:01:34]} 23. Bxf7+ {[%clk 0:00:59]}  Kh8 {[%clk 0:01:33]} 24. Qh5 {[%clk 0:00:36]}  Rd6 {[%clk 0:01:26]} 25. Bg6 {[%clk 0:00:26]}  h6 {[%clk 0:00:44]} 26. Nf7+ {[%clk 0:00:23]}  Kg8 {[%clk 0:00:43]} 27. Nxh6+ {[%clk 0:00:24]}  gxh6 {[%clk 0:00:40]} 28. Qxh6 {[%clk 0:00:24]} 1-0


[Site "https://www.chess.com"]

[Event "Titled Tuesday Blitz November 22 Early 2022"]
[White "Ezat, Mohamed"]
[Black "Pranav Anand"]
[WhiteFideId "10600906"]
[BlackFideId "46626786"]
[WhiteElo "2386"]
[BlackElo "2402"]
[Result "1-0"]
[Round "04"]
[TimeControl "180+1"]
[Date "2022.11.23"]
[WhiteClock "0:00:06"]
[BlackClock "0:00:29"]

1. d4 {[%clk 0:02:59]}  Nf6 {[%clk 0:02:59]} 2. c4 {[%clk 0:02:58]}  e6 {[%clk 0:02:59]} 3. Nc3 {[%clk 0:02:58]}  d5 {[%clk 0:02:59]} 4. cxd5 {[%clk 0:02:58]}  exd5 {[%clk 0:03:00]} 5. Bg5 {[%clk 0:02:58]}  c6 {[%clk 0:03:00]} 6. Qc2 {[%clk 0:02:57]}  Be7 {[%clk 0:03:01]} 7. e3 {[%clk 0:02:57]}  Nbd7 {[%clk 0:03:01]} 8. Bd3 {[%clk 0:02:57]}  h6 {[%clk 0:03:01]} 9. Bf4 {[%clk 0:02:55]}  Nh5 {[%clk 0:03:01]} 10. Be5 {[%clk 0:02:55]}  Nhf6 {[%clk 0:02:56]} 11. Bf4 {[%clk 0:02:54]}  Nf8 {[%clk 0:02:51]} 12. Nf3 {[%clk 0:02:51]}  Ne6 {[%clk 0:02:51]} 13. Be5 {[%clk 0:02:48]}  Ng4 {[%clk 0:02:47]} 14. Bg3 {[%clk 0:02:47]}  Bd6 {[%clk 0:02:47]} 15. Bxd6 {[%clk 0:02:37]}  Qxd6 {[%clk 0:02:48]} 16. h3 {[%clk 0:02:37]}  Nf6 {[%clk 0:02:47]} 17. Ne5 {[%clk 0:02:37]}  O-O {[%clk 0:02:45]} 18. O-O {[%clk 0:02:36]}  c5 {[%clk 0:02:45]} 19. Nb5 {[%clk 0:02:31]}  Qe7 {[%clk 0:02:45]} 20. Bf5 {[%clk 0:02:20]}  a6 {[%clk 0:02:43]} 21. Nc3 {[%clk 0:02:18]}  cxd4 {[%clk 0:02:41]} 22. Bxe6 {[%clk 0:02:15]}  dxc3 {[%clk 0:02:39]} 23. Ng6 {[%clk 0:01:55]}  Qxe6 {[%clk 0:02:36]} 24. Nxf8 {[%clk 0:01:56]}  Kxf8 {[%clk 0:02:37]} 25. Qxc3 {[%clk 0:01:55]}  Kg8 {[%clk 0:02:37]} 26. Rad1 {[%clk 0:01:54]}  Bd7 {[%clk 0:02:37]} 27. Rd4 {[%clk 0:01:52]}  Bc6 {[%clk 0:02:36]} 28. a4 {[%clk 0:01:49]}  Ne4 {[%clk 0:02:36]} 29. Qc2 {[%clk 0:01:48]}  Nd6 {[%clk 0:02:36]} 30. b4 {[%clk 0:01:46]}  Rc8 {[%clk 0:02:34]} 31. Qb3 {[%clk 0:01:44]}  Nf5 {[%clk 0:02:33]} 32. Rf4 {[%clk 0:01:43]}  Qg6 {[%clk 0:02:19]} 33. b5 {[%clk 0:01:35]}  axb5 {[%clk 0:01:29]} 34. axb5 {[%clk 0:01:34]}  Be8 {[%clk 0:01:30]} 35. Qxd5 {[%clk 0:01:34]}  Nd6 {[%clk 0:01:30]} 36. Rb4 {[%clk 0:01:16]}  Qe6 {[%clk 0:01:21]} 37. Rd1 {[%clk 0:01:11]}  Qxd5 {[%clk 0:01:19]} 38. Rxd5 {[%clk 0:01:10]}  Nc4 {[%clk 0:01:19]} 39. Rd4 {[%clk 0:00:57]}  Na3 {[%clk 0:01:12]} 40. Rd5 {[%clk 0:00:53]}  Kf8 {[%clk 0:01:10]} 41. g4 {[%clk 0:00:50]}  Rc1+ {[%clk 0:00:55]} 42. Kh2 {[%clk 0:00:50]}  Rc2 {[%clk 0:00:56]} 43. Kg3 {[%clk 0:00:50]}  Nc4 {[%clk 0:00:55]} 44. Rd8 {[%clk 0:00:35]}  Ke7 {[%clk 0:00:50]} 45. Rc8 {[%clk 0:00:34]}  Na3 {[%clk 0:00:47]} 46. Re4+ {[%clk 0:00:34]}  Kf6 {[%clk 0:00:44]} 47. Rcxe8 {[%clk 0:00:33]}  Nxb5 {[%clk 0:00:44]} 48. Rf4+ {[%clk 0:00:26]}  Kg6 {[%clk 0:00:44]} 49. h4 {[%clk 0:00:23]}  f6 {[%clk 0:00:43]} 50. Rd8 {[%clk 0:00:20]}  Nc7 {[%clk 0:00:42]} 51. Re4 {[%clk 0:00:19]}  Rc6 {[%clk 0:00:41]} 52. Re7 {[%clk 0:00:18]}  Ne6 {[%clk 0:00:39]} 53. Rdd7 {[%clk 0:00:16]}  h5 {[%clk 0:00:38]} 54. f3 {[%clk 0:00:11]}  b5 {[%clk 0:00:37]} 55. Rb7 {[%clk 0:00:11]}  hxg4 {[%clk 0:00:21]} 56. fxg4 {[%clk 0:00:10]}  Kh6 {[%clk 0:00:22]} 57. Rxb5 {[%clk 0:00:10]}  Nc5 {[%clk 0:00:22]} 58. Rb8 {[%clk 0:00:06]}  Kg6 {[%clk 0:00:20]} 59. Rh8 {[%clk 0:00:05]}  f5 {[%clk 0:00:19]} 60. h5+ {[%clk 0:00:05]}  Kg5 {[%clk 0:00:19]} 61. Rxg7+ {[%clk 0:00:05]}  Kf6 {[%clk 0:00:19]} 62. Rg6+ {[%clk 0:00:05]}  Ke5 {[%clk 0:00:19]} 63. Rxc6 {[%clk 0:00:02]}  Ne4+ {[%clk 0:00:20]} 64. Kg2 {[%clk 0:00:01]}  f4 {[%clk 0:00:20]} 65. Rcc8 {[%clk 0:00:02]}  f3+ {[%clk 0:00:21]} 66. Kg1 {[%clk 0:00:02]}  Ng5 {[%clk 0:00:22]} 67. Kf1 {[%clk 0:00:02]}  Ke4 {[%clk 0:00:23]} 68. Ke1 {[%clk 0:00:02]}  Kd3 {[%clk 0:00:23]} 69. Rcd8+ {[%clk 0:00:02]}  Kxe3 {[%clk 0:00:24]} 70. Rhe8+ {[%clk 0:00:02]}  Kf4 {[%clk 0:00:25]} 71. Rf8+ {[%clk 0:00:02]}  Kg3 {[%clk 0:00:26]} 72. Rde8 {[%clk 0:00:02]}  Kxg4 {[%clk 0:00:26]} 73. Re3 {[%clk 0:00:03]}  Kxh5 {[%clk 0:00:27]} 74. Re5 {[%clk 0:00:03]}  Kg4 {[%clk 0:00:27]} 75. Rg8 {[%clk 0:00:03]}  Kf4 {[%clk 0:00:27]} 76. Rgxg5 {[%clk 0:00:03]}  f2+ {[%clk 0:00:27]} 77. Kf1 {[%clk 0:00:03]}  Kf3 {[%clk 0:00:27]} 78. Rgf5+ {[%clk 0:00:04]}  Kg4 {[%clk 0:00:28]} 79. Rxf2 {[%clk 0:00:05]}  Kg3 {[%clk 0:00:28]} 80. Re8 {[%clk 0:00:05]}  Kh4 {[%clk 0:00:29]} 81. Rg8 {[%clk 0:00:05]}  Kh3 {[%clk 0:00:29]} 82. Rf7 {[%clk 0:00:06]} 1-0


[Site "https://www.chess.com"]